fUSD/lending_fUSD_20260213
["ID","MTS","AMOUNT","RATE_DAILY","PERIOD"]
[405284680,1770941448161,-179.813856,0.00044217,120]
[405284681,1770941448170,-179.813856,0.00044217,120]
[405284682,1770941448180,-179.813856,0.00044217,120]
[405284683,1770941448189,-179.813856,0.00044217,120]
[405284684,1770941448198,-179.813856,0.00044217,120]
[405284685,1770941448207,-179.813861,0.00044217,120]
[405284686,1770941448216,-151.0,0.00044217,120]
[405284687,1770941448226,-151.0,0.00044217,120]
[405284688,1770941448235,-151.0,0.00044217,120]
[405284689,1770941448244,-151.0,0.00044217,120]
[405284690,1770941448254,-164.491421,0.00044217,120]
[405284691,1770941448263,-151.0,0.00044217,120]
[405284692,1770941448272,-151.0,0.00044217,120]
[405284693,1770941448282,-151.0,0.00044217,120]
[405284694,1770941448291,-151.0,0.00044217,120]
[405284695,1770941448301,-151.0,0.00044217,120]
[405284696,1770941448310,-151.0,0.00044217,120]
[405284697,1770941448319,-151.0,0.00044217,120]
[405284698,1770941448328,-151.0,0.00044217,120]
[405284699,1770941448338,-294.05468,0.00044217,120]
[405284700,1770941448348,-200.0,0.00044217,120]
[405284701,1770941448359,-151.0,0.00044217,120]
[405284702,1770941448368,-224.189175,0.00044217,120]
[405284703,1770941448377,-158.396312,0.00044217,120]
[405284704,1770941448387,-158.396312,0.00044217,120]
[405284705,1770941448397,-158.396312,0.00044217,120]
[405284706,1770941448406,-158.396312,0.00044217,120]
[405284707,1770941448416,-158.396312,0.00044217,120]
[405284708,1770941448426,-158.396312,0.00044217,120]
[405284709,1770941448437,-158.396312,0.00044217,120]
[405284710,1770941448446,-158.396312,0.00044217,120]
[405284711,1770941448456,-158.396312,0.00044217,120]
[405284712,1770941448465,-158.396312,0.00044217,120]
[405284713,1770941448475,-158.396312,0.00044217,120]
[405284714,1770941448484,-158.396312,0.00044217,120]
[405284715,1770941448494,-158.396312,0.00044217,120]
[405284716,1770941448503,-158.396312,0.00044217,120]
[405284718,1770941448513,-158.396312,0.00044217,120]
[405284719,1770941448522,-158.396312,0.00044217,120]
[405284720,1770941448532,-158.396312,0.00044217,120]
[405284721,1770941448541,-158.396312,0.00044217,120]
[405284722,1770941448551,-158.396312,0.00044217,120]
[405284723,1770941448561,-158.396316,0.00044217,120]
[405284724,1770941448571,-151.0,0.00044217,120]
[405284725,1770941448581,-151.0,0.00044217,120]
[405284726,1770941448591,-151.0,0.00044217,120]
[405284727,1770941448601,-151.0,0.00044217,120]
[405284728,1770941448611,-151.0,0.00044217,120]
[405284729,1770941448620,-151.0,0.00044217,120]
[405284730,1770941448630,-151.0,0.00044217,120]
[405284731,1770941448640,-151.0,0.00044217,120]
[405284732,1770941448650,-151.0,0.00044217,120]
[405284733,1770941448660,-236.771232,0.00044217,120]
[405284734,1770941448673,-151.0,0.00044217,120]
[405284735,1770941448684,-151.0,0.00044217,120]
[405284736,1770941448694,-151.0,0.00044217,120]
[405284737,1770941448703,-151.0,0.00044217,120]
[405284738,1770941448713,-151.0,0.00044217,120]
[405284739,1770941448722,-151.0,0.00044217,120]
[405284740,1770941448733,-151.0,0.00044217,120]
[405284741,1770941448745,-151.0,0.00044217,120]
[405284742,1770941448755,-151.0,0.00044217,120]
[405284743,1770941448765,-151.0,0.00044217,120]
[405284744,1770941448775,-184.438866,0.00044217,120]
[405284745,1770941448785,-294.47471,0.00044217,120]
[405284746,1770941448794,-294.47471,0.00044217,120]
[405284747,1770941448805,-294.47471,0.00044217,120]
[405284748,1770941448815,-294.47471,0.00044217,120]
[405284749,1770941448826,-294.47471,0.00044217,120]
[405284750,1770941448836,-294.47471,0.00044217,120]
[405284751,1770941448847,-294.47471,0.00044217,120]
[405284752,1770941448857,-294.47471,0.00044217,120]
[405284753,1770941448867,-740.071403,0.00044217,120]
[405284754,1770941448876,-294.47471,0.00044217,120]
[405284755,1770941448886,-740.071403,0.00044217,120]
[405284756,1770941448896,-294.47471,0.00044217,120]
[405284757,1770941448906,-294.47471,0.00044217,120]
[405284758,1770941448916,-740.071403,0.00044217,120]
[405284759,1770941448926,-740.071403,0.00044217,120]
[405284760,1770941448936,-294.47471,0.00044217,120]
[405284761,1770941448947,-740.071403,0.00044217,120]
[405284762,1770941448956,-294.47471,0.00044217,120]
[405284763,1770941448966,-740.071403,0.00044217,120]
[405284764,1770941448975,-294.47471,0.00044217,120]
[405284765,1770941448985,-740.071403,0.00044217,120]
[405284766,1770941448994,-294.47471,0.00044217,120]
[405284767,1770941449003,-740.071403,0.00044217,120]
[405284768,1770941449013,-294.47471,0.00044217,120]
[405284769,1770941449022,-740.071403,0.00044217,120]
[405284770,1770941449032,-294.47471,0.00044217,120]
[405284771,1770941449043,-740.071403,0.00044217,120]
[405284772,1770941449058,-294.47471,0.00044217,120]
[405284773,1770941449077,-740.071403,0.00044217,120]
[405284774,1770941449086,-294.47471,0.00044217,120]
[405284775,1770941449095,-740.071403,0.00044217,120]
[405284776,1770941449105,-294.474716,0.00044217,120]
[405284777,1770941449115,-740.071403,0.00044217,120]
[405284778,1770941449124,-740.071403,0.00044217,120]
[405284779,1770941449134,-740.071403,0.00044217,120]
[405284780,1770941449144,-740.071403,0.00044217,120]
[405284781,1770941449153,-740.071403,0.00044217,120]
[405284782,1770941449163,-740.071403,0.00044217,120]
[405284783,1770941449173,-740.071403,0.00044217,120]
[405284784,1770941449183,-740.071401,0.00044217,120]
[405284785,1770941449192,-151.0,0.00044217,120]
[405284786,1770941449203,-151.0,0.00044217,120]
[405284787,1770941449213,-4296.45856586,0.00044217,30]
[405284788,1770941449223,-4296.45856586,0.00044217,30]
[405284789,1770941449232,-500.0,0.00044219,120]
[405284790,1770941449243,-151.0,0.00044243,120]
[405284791,1770941449254,-151.0,0.00044243,120]
[405284792,1770941449264,-151.0,0.00044243,7]
[405284793,1770941449277,-151.0,0.00044243,7]
[405284794,1770941449287,-151.0,0.00044243,7]
[405284795,1770941449296,-151.0,0.00044243,7]
[405284796,1770941449307,-151.0,0.00044243,7]
[405284797,1770941449317,-151.0,0.00044243,7]
[405284798,1770941449327,-151.0,0.00044243,7]
[405284799,1770941449336,-187.689183,0.00044243,7]
[405284800,1770941449346,-151.0,0.00044243,120]
[405284801,1770941449355,-151.0,0.00044243,120]
[405284802,1770941449365,-151.0,0.00044243,120]
[405284803,1770941449375,-151.0,0.00044243,120]
[405284804,1770941449385,-151.0,0.00044243,120]
[405284805,1770941449394,-1004.42081468,0.00044243,120]
[405284806,1770941449404,-20962.05757129,0.00044243,54]
[405284807,1770941449413,-58033.63253666,0.00044243,10]
[405284808,1770941449588,-801.35087918,0.00027422,2]
[405284809,1770941449599,-1383.71753629,0.00027422,2]
[405284810,1770941449609,-1943.64746376,0.0004037,15]
[405284811,1770941449620,-599.88262762,0.0004037,15]
[405284812,1770941449632,-783.98259058,0.0004037,15]
[405284813,1770941449652,-1019.64210675,0.0004037,15]
[405284814,1770941449664,-10134.60105789,0.0004037,15]
[405284815,1770941449678,-5967.0,0.00041543,2]
[405284816,1770941449688,-44837.95466377,0.00044079,15]
[405284817,1770941449698,-151.0,0.00044243,120]
[405284818,1770941449709,-151.0,0.00044243,120]
[405284819,1770941449719,-151.0,0.00044243,120]
[405284820,1770941449728,-151.0,0.00044243,120]
[405284821,1770941449738,-362.28305,0.00044243,120]
[405284822,1770941449749,-151.0,0.00044243,120]
[405284823,1770941449759,-362.28305,0.00044243,120]
[405284824,1770941449769,-553802.59214758,0.00044243,10]
[405284825,1770941449780,-4568.3,0.00044243,10]
[405284826,1770941449792,-4865.58111011,0.00044243,10]
[405284827,1770941449808,-4214486.14489821,0.00044243,10]
[405284828,1770941449820,-19436.80445432,0.00044243,10]
[405284829,1770941449832,-564.11572434,0.00044243,10]
[405284830,1770941450089,-151.19282811,0.000161,2]
[405284831,1770941450099,-504.0,0.00019,2]
[405284832,1770941450110,-1345.21641002,0.00021848,2]
[405284833,1770941450119,-504.0,0.00023357,6]
[405284834,1770941450129,-504.0,0.00027714,10]
[405284835,1770941450138,-3574.53282082,0.0002981,2]
[405284836,1770941450148,-504.0,0.00032071,14]
[405284837,1770941450158,-504.0,0.00036429,18]
[405284838,1770941450169,-504.0,0.00040786,22]
[405284839,1770941450179,-645.0,0.00042172,60]
[405284840,1770941450189,-14481.7558466,0.00044079,15]
[405284841,1770941450199,-2185.06841547,0.00044143,2]
[405284842,1770941450209,-362.28305,0.00044243,120]
[405284843,1770941450220,-362.28305,0.00044243,120]
[405284844,1770941450230,-362.28305,0.00044243,120]
[405284845,1770941450241,-362.28305,0.00044243,120]
[405284846,1770941450251,-362.28305,0.00044243,120]
[405284847,1770941450261,-362.28305,0.00044243,120]
[405284848,1770941450271,-362.28305,0.00044243,120]
[405284849,1770941450281,-362.28305,0.00044243,120]
[405284850,1770941450290,-362.28305,0.00044243,120]
[405284851,1770941450300,-362.28305,0.00044243,120]
[405284852,1770941450309,-362.28305,0.00044243,120]
[405284853,1770941450319,-362.28305,0.00044243,120]
[405284854,1770941450328,-362.28305,0.00044243,120]
[405284855,1770941450338,-362.28305,0.00044243,120]
[405284856,1770941450348,-362.28305,0.00044243,120]
[405284857,1770941450358,-362.28305,0.00044243,120]
[405284858,1770941450368,-29134.33541415,0.00044243,10]
[405284859,1770941450396,-619.0,0.00043835,60]
[405284860,1770941450406,-119.15577013,0.00044243,120]
[405284861,1770941450437,-495.72,0.00027422,2]
[405284936,1770942417170,175.83,7.09e-05,2]
[405284980,1770942631567,-219.0,8.271e-05,2]
[405284981,1770942631578,-175.83,8.271e-05,2]
[405284982,1770942631588,-250.0,8.486e-05,2]
[405284983,1770942631598,-179.68661962,8.7e-05,3]
[405284984,1770942631614,-20.31338038,8.7e-05,3]
[405284986,1770942631624,-250.0,8.734e-05,2]
[405284988,1770942631634,-400.0,8.8e-05,3]
[405284990,1770942631644,-600.0,8.9e-05,3]
[405284992,1770942631654,-800.0,9e-05,3]
[405284994,1770942631663,-250.0,9.098e-05,2]
[405284995,1770942631675,-358.77474096,9.3e-05,3]
[405284996,1770942631684,-484.03958553,9.3e-05,3]
[405284997,1770942631695,-515.35579668,9.3e-05,3]
[405284998,1770942631705,-1493.55582126,9.3e-05,3]
[405284999,1770942631714,-300.0,9.444e-05,2]
[405285000,1770942631724,-1200.0,9.444e-05,2]
[405285001,1770942631734,-150.0,9.444e-05,2]
[405285002,1770942631744,-287.0,9.444e-05,2]
[405285003,1770942631753,-1000.0,9.445e-05,2]
[405285004,1770942631762,-500.0,9.445e-05,2]
[405285005,1770942631772,-282.05346643,9.445e-05,2]
[405285006,1770942631781,-161.02237933,9.445e-05,2]
[405285007,1770942631791,-500.0,9.445e-05,2]
[405285008,1770942631800,-500.0,9.445e-05,2]
[405285009,1770942631810,-262.7393428,9.445e-05,2]
[405285010,1770942631820,-500.0,9.445e-05,2]
[405285012,1770942631830,-500.0,9.445e-05,2]
[405285014,1770942631840,-500.0,9.445e-05,2]
[405285015,1770942631850,-500.0,9.445e-05,2]
[405285016,1770942631860,-500.0,9.445e-05,2]
[405285017,1770942631870,-500.0,9.445e-05,2]
[405285018,1770942631880,-500.0,9.445e-05,2]
[405285019,1770942631889,-500.0,9.445e-05,2]
[405285020,1770942631899,-500.0,9.445e-05,2]
[405285021,1770942631908,-500.0,9.445e-05,2]
[405285022,1770942631918,-500.0,9.445e-05,2]
[405285023,1770942631928,-500.0,9.445e-05,2]
[405285024,1770942631939,-500.0,9.445e-05,2]
[405285025,1770942631948,-500.0,9.445e-05,2]
[405285026,1770942631959,-500.0,9.445e-05,2]
[405285027,1770942631969,-500.0,9.445e-05,2]
[405285028,1770942631978,-500.0,9.445e-05,2]
[405285029,1770942631988,-500.0,9.445e-05,2]
[405285030,1770942631998,-500.0,9.445e-05,2]
[405285031,1770942632007,-500.0,9.445e-05,2]
[405285032,1770942632017,-500.0,9.445e-05,2]
[405285033,1770942632026,-500.0,9.445e-05,2]
[405285034,1770942632036,-500.0,9.445e-05,2]
[405285035,1770942632048,-500.0,9.445e-05,2]
[405285036,1770942632058,-500.0,9.445e-05,2]
[405285037,1770942632067,-500.0,9.445e-05,2]
[405285038,1770942632077,-500.0,9.445e-05,2]
[405285039,1770942632087,-500.0,9.445e-05,2]
[405285040,1770942632097,-500.0,9.445e-05,2]
[405285041,1770942632107,-500.0,9.445e-05,2]
[405285042,1770942632118,-500.0,9.445e-05,2]
[405285043,1770942632131,-500.0,9.445e-05,2]
[405285044,1770942632141,-500.0,9.445e-05,2]
[405285045,1770942632152,-500.0,9.445e-05,2]
[405285046,1770942632161,-500.0,9.445e-05,2]
[405285047,1770942632171,-500.0,9.445e-05,2]
[405285048,1770942632181,-500.0,9.445e-05,2]
[405285049,1770942632191,-500.0,9.445e-05,2]
[405285050,1770942632200,-500.0,9.445e-05,2]
[405285051,1770942632210,-500.0,9.445e-05,2]
[405285052,1770942632219,-500.0,9.445e-05,2]
[405285053,1770942632229,-500.0,9.445e-05,2]
[405285054,1770942632239,-437.11835436,9.445e-05,2]
[405285055,1770942632394,-62.88164564,9.445e-05,2]
[405285056,1770942632404,-500.0,9.445e-05,2]
[405285057,1770942632414,-179.57882697,9.445e-05,2]
[405285058,1770942632424,-500.0,9.445e-05,2]
[405285059,1770942632434,-500.0,9.445e-05,2]
[405285060,1770942632444,-500.0,9.445e-05,2]
[405285061,1770942632453,-500.0,9.445e-05,2]
[405285062,1770942632462,-500.0,9.445e-05,2]
[405285063,1770942632472,-500.0,9.445e-05,2]
[405285064,1770942632481,-500.0,9.445e-05,2]
[405285065,1770942632490,-500.0,9.445e-05,2]
[405285066,1770942632499,-500.0,9.445e-05,2]
[405285067,1770942632508,-500.0,9.445e-05,2]
[405285068,1770942632518,-500.0,9.445e-05,2]
[405285069,1770942632527,-500.0,9.445e-05,2]
[405285070,1770942632536,-500.0,9.445e-05,2]
[405285071,1770942632545,-500.0,9.445e-05,2]
[405285072,1770942632555,-500.0,9.445e-05,2]
[405285073,1770942632564,-500.0,9.445e-05,2]
[405285074,1770942632573,-500.0,9.445e-05,2]
[405285075,1770942632583,-500.0,9.445e-05,2]
[405285076,1770942632592,-500.0,9.445e-05,2]
[405285077,1770942632601,-500.0,9.445e-05,2]
[405285078,1770942632611,-500.0,9.445e-05,2]
[405285079,1770942632620,-415.04824844,9.445e-05,2]
[405285080,1770942632629,-500.0,9.445e-05,2]
[405285081,1770942632639,-500.0,9.445e-05,2]
[405285082,1770942632649,-500.0,9.445e-05,2]
[405285083,1770942632659,-500.0,9.445e-05,2]
[405285084,1770942632668,-500.0,9.445e-05,2]
[405285085,1770942632677,-500.0,9.445e-05,2]
[405285086,1770942632686,-500.0,9.445e-05,2]
[405285087,1770942632696,-250.0,9.445e-05,2]
[405285088,1770942632705,-500.0,9.445e-05,2]
[405285089,1770942632714,-500.0,9.445e-05,2]
[405285090,1770942632724,-500.0,9.445e-05,2]
[405285091,1770942632734,-500.0,9.445e-05,2]
[405285092,1770942632744,-500.0,9.445e-05,2]
[405285093,1770942632754,-500.0,9.445e-05,2]
[405285094,1770942632763,-500.0,9.445e-05,2]
[405285095,1770942632772,-500.0,9.445e-05,2]
[405285096,1770942632782,-500.0,9.445e-05,2]
[405285097,1770942632791,-233.92759524,9.445e-05,2]
[405285098,1770942632801,-606.94922471,9.445e-05,2]
[405285099,1770942632810,-118872.40714826,9.446e-05,2]
[405285100,1770942632823,-2545.00000032,9.446e-05,2]
[405285101,1770942632835,-3805.72929264,9.446e-05,2]
[405285102,1770942632851,-2386.55070736,9.446e-05,2]
[405285103,1770942632863,-385.2176,9.446e-05,2]
[405285105,1770942638047,-14161.79383668,9.446e-05,2]
[405285106,1770942638072,-3119.86958993,9.446e-05,2]
[405285107,1770942638181,-3354723.43182481,9.446e-05,2]
[405285108,1770942638192,-606.94922469,9.449e-05,2]
[405285109,1770942638201,-5963.40283224,9.449e-05,2]
[405285110,1770942638211,-175.83,9.453e-05,2]
[405285111,1770942638224,-606.94922469,9.453e-05,2]
[405285112,1770942638234,-318.36,9.489e-05,2]
[405285113,1770942638244,-267.5,9.5e-05,2]
[405285114,1770942638253,-750.0,9.545e-05,2]
[405285115,1770942638264,-1497.77,9.545e-05,2]
[405285116,1770942638274,-224.185,9.545e-05,2]
[405285117,1770942638285,-688.05,9.546e-05,2]
[405285118,1770942638295,-5642.12,9.546e-05,2]
[405285119,1770942638305,-13451.01,9.546e-05,2]
[405285120,1770942638315,-7668.74,9.546e-05,2]
[405285121,1770942638326,-1852.42,9.546e-05,2]
[405285122,1770942638336,-6297.8307,9.562e-05,2]
[405285123,1770942638346,-89399.5531,9.562e-05,2]
[405285124,1770942638355,-2500.0,9.562e-05,2]
[405285125,1770942638365,-200.0,9.61e-05,2]
[405285126,1770942638375,-3228.0,9.61e-05,2]
[405285127,1770942638384,-500.0,9.61e-05,2]
[405285128,1770942638394,-500.0,9.61e-05,2]
[405285129,1770942638404,-542.0,9.61e-05,2]
[405285132,1770942638417,-500.0,9.61e-05,2]
[405285134,1770942638427,-150.0,9.61e-05,2]
[405285136,1770942638436,-500.0,9.61e-05,2]
[405285138,1770942638447,-500.0,9.61e-05,2]
[405285140,1770942638457,-500.0,9.61e-05,2]
[405285142,1770942638466,-500.0,9.61e-05,2]
[405285144,1770942638476,-500.0,9.61e-05,2]
[405285146,1770942638486,-150.0,9.61e-05,2]
[405285148,1770942638495,-150.0,9.61e-05,2]
[405285150,1770942638505,-500.0,9.61e-05,2]
[405285152,1770942638514,-275.16483116,9.61e-05,2]
[405285154,1770942638524,-500.0,9.61e-05,2]
[405285156,1770942638534,-150.0,9.61e-05,2]
[405285158,1770942638544,-169759.4,9.662e-05,2]
[405285159,1770942638552,-150.99,9.662e-05,2]
[405285160,1770942638561,-9999.99,9.662e-05,2]
[405285161,1770942638571,-9999.99,9.662e-05,2]
[405285162,1770942638580,-150.99,9.662e-05,2]
[405285163,1770942638589,-3228.0,9.665e-05,2]
[405285164,1770942638598,-500.0,9.665e-05,2]
[405285165,1770942638611,-500.0,9.665e-05,2]
[405285166,1770942638621,-542.0,9.665e-05,2]
[405285167,1770942638630,-500.0,9.665e-05,2]
[405285168,1770942638639,-150.0,9.665e-05,2]
[405285169,1770942638649,-500.0,9.665e-05,2]
[405285170,1770942638659,-500.0,9.665e-05,2]
[405285171,1770942638669,-500.0,9.665e-05,2]
[405285172,1770942638678,-500.0,9.665e-05,2]
[405285173,1770942638688,-500.0,9.665e-05,2]
[405285174,1770942638698,-150.0,9.665e-05,2]
[405285176,1770942638707,-162.64715062,9.665e-05,2]
[405285178,1770942638717,-500.0,9.665e-05,2]
[405285180,1770942638726,-500.0,9.665e-05,2]
[405285182,1770942638736,-150.0,9.665e-05,2]
[405285184,1770942638745,-482.06626371,9.7e-05,3]
[405285186,1770942638755,-681.30602194,9.7e-05,3]
[405285188,1770942638764,-731.1159615,9.7e-05,3]
[405285190,1770942638774,-2286.99013398,9.7e-05,3]
[405285192,1770942638783,-858.22418709,9.7e-05,3]
[405285194,1770942638792,-1283.15869935,9.7e-05,3]
[405285196,1770942638802,-1389.39232742,9.7e-05,3]
[405285198,1770942638816,-4707.72918196,9.7e-05,3]
[405285200,1770942638827,-359.27,9.7e-05,2]
[405285202,1770942638837,-500.0,9.711e-05,2]
[405285204,1770942638846,-500.0,9.719e-05,2]
[405285206,1770942638856,-3228.0,9.72e-05,2]
[405285208,1770942638865,-500.0,9.72e-05,2]
[405285210,1770942638875,-500.0,9.72e-05,2]
[405285212,1770942638885,-542.0,9.72e-05,2]
[405285215,1770942638895,-500.0,9.72e-05,2]
[405285216,1770942638904,-150.0,9.72e-05,2]
[405285219,1770942638914,-447.17637563,9.72e-05,2]
[405285221,1770942638924,-183.8300813,9.72e-05,2]
[405285223,1770942638934,-500.0,9.72e-05,2]
[405285225,1770942638944,-500.0,9.72e-05,2]
[405285227,1770942638954,-500.0,9.72e-05,2]
[405285229,1770942638964,-193.51543149,9.72e-05,2]
[405285231,1770942638974,-500.0,9.72e-05,2]
[405285233,1770942638984,-500.0,9.72e-05,2]
[405285235,1770942638993,-250.0,9.72e-05,2]
[405285237,1770942639006,-500.0,9.766e-05,2]
[405285239,1770942639016,-3228.0,9.774e-05,2]
[405285241,1770942639026,-500.0,9.774e-05,2]
[405285243,1770942639036,-452.01319688,9.774e-05,2]
[405285245,1770942639048,-542.0,9.774e-05,2]
[405285247,1770942639058,-539.25702788,9.774e-05,2]
[405285249,1770942639068,-218.89223002,9.774e-05,2]
[405285251,1770942639078,-500.0,9.774e-05,2]
[405285253,1770942639089,-500.0,9.774e-05,2]
[405285255,1770942639099,-500.0,9.774e-05,2]
[405285257,1770942639109,-500.0,9.774e-05,2]
[405285259,1770942639120,-500.0,9.774e-05,2]
[405285261,1770942639131,-500.0,9.821e-05,2]
[405285263,1770942639141,-3228.0,9.829e-05,2]
[405285265,1770942639151,-500.0,9.829e-05,2]
[405285267,1770942639161,-542.0,9.829e-05,2]
[405285269,1770942639172,-500.0,9.829e-05,2]
[405285271,1770942639182,-610.98257848,9.829e-05,2]
[405285273,1770942639193,-500.0,9.829e-05,2]
[405285276,1770942639203,-194.79450229,9.829e-05,2]
[405285278,1770942639213,-450.10903199,9.863e-05,2]
[405285280,1770942639223,-500.0,9.875e-05,2]
[405285282,1770942639234,-3228.0,9.884e-05,2]
[405285284,1770942639244,-500.0,9.884e-05,2]
[405285286,1770942639254,-542.0,9.884e-05,2]
[405285288,1770942639264,-500.0,9.884e-05,2]
[405285290,1770942639273,-500.0,9.884e-05,2]
[405285292,1770942639282,-335.03,9.884e-05,2]
[405285294,1770942639292,-150.18,9.9e-05,2]
[405285296,1770942639302,-500.0,9.93e-05,2]
[405285298,1770942639312,-3228.0,9.939e-05,2]
[405285300,1770942639322,-500.0,9.939e-05,2]
[405285302,1770942639332,-542.0,9.939e-05,2]
[405285304,1770942639342,-500.0,9.939e-05,2]
[405285306,1770942639352,-500.0,9.939e-05,2]
[405285308,1770942639362,-599.2449,9.985e-05,2]
[405285310,1770942639371,-258.5311,9.985e-05,2]
[405285312,1770942639381,-10000.0,9.985e-05,2]
[405285315,1770942639400,-500.0,9.985e-05,2]
[405285317,1770942639411,-500.0,9.993e-05,2]
[405285319,1770942639421,-3228.0,9.994e-05,2]
[405285321,1770942639431,-278.37377962,9.994e-05,2]
[405285323,1770942639441,-542.0,9.994e-05,2]
[405285325,1770942639451,-500.0,9.994e-05,2]
[405285327,1770942639461,-500.0,9.994e-05,2]
[405285329,1770942639471,-174.34074149,0.0001,2]
[405285331,1770942639482,-151.0,0.0001,2]
[405285333,1770942639492,-151.0,0.0001,2]
[405285336,1770942639502,-151.0,0.0001,2]
[405285338,1770942639513,-151.0,0.0001,2]
[405285340,1770942639524,-151.0,0.0001,2]
[405285342,1770942639534,-151.0,0.0001,2]
[405285344,1770942639544,-151.0,0.0001,2]
[405285346,1770942639554,-151.0,0.0001,2]
[405285348,1770942639564,-151.0,0.0001,2]
[405285350,1770942639574,-151.0,0.0001,2]
[405285352,1770942639583,-151.0,0.0001,2]
[405285354,1770942639593,-151.0,0.0001,2]
[405285356,1770942639602,-151.0,0.0001,2]
[405285358,1770942639612,-151.0,0.0001,2]
[405285360,1770942639621,-151.0,0.0001,2]
[405285362,1770942639631,-151.0,0.0001,2]
[405285364,1770942639640,-151.0,0.0001,2]
[405285367,1770942639651,-151.0,0.0001,2]
[405285369,1770942639660,-151.0,0.0001,2]
[405285371,1770942639670,-151.0,0.0001,2]
[405285373,1770942639680,-175.02574376,0.0001,2]
[405285375,1770942639689,-1000.0,0.0001,3]
[405285377,1770942639699,-1965.83967859,0.0001,2]
[405285379,1770942639709,-14987.7181558,0.0001,2]
[405285381,1770942639719,-414.36808255,0.0001,2]
[405285383,1770942639729,-1012.87071238,0.0001,2]
[405285385,1770942639739,-1012.87071238,0.0001,2]
[405285387,1770942639748,-500.0,0.0001004,2]
[405285390,1770942639759,-3228.0,0.00010048,2]
[405285392,1770942639768,-542.0,0.00010048,2]
[405285394,1770942639778,-500.0,0.00010048,2]
[405285396,1770942639788,-500.0,0.00010048,2]
[405285398,1770942639797,-688.05,0.00010076,2]
[405285400,1770942639807,-500.0,0.00010095,2]
[405285402,1770942639817,-260.45954159,0.000101,2]
[405285404,1770942639827,-3228.0,0.00010103,2]
[405285406,1770942639836,-542.0,0.00010103,2]
[405285408,1770942639846,-500.0,0.00010103,2]
[405285410,1770942639856,-211.08875195,0.00010103,2]
[405285412,1770942639865,-500.0,0.00010149,2]
[405285414,1770942639876,-3228.0,0.00010158,2]
[405285416,1770942639885,-542.0,0.00010158,2]
[405285418,1770942639896,-500.0,0.00010158,2]
[405285420,1770942639906,-335.03,0.00010158,2]
[405285422,1770942639916,-500.0,0.00010204,2]
[405285424,1770942639927,-3228.0,0.00010213,2]
[405285426,1770942639936,-542.0,0.00010213,2]
[405285428,1770942639946,-304.68001975,0.00010213,2]
[405285431,1770942639956,-500.0,0.00010259,2]
[405285433,1770942639967,-500.0,0.00010267,2]
[405285435,1770942639977,-3228.0,0.00010268,2]
[405285437,1770942639987,-542.0,0.00010268,2]
[405285439,1770942639998,-500.0,0.00010314,2]
[405285441,1770942640008,-3228.0,0.00010322,2]
[405285443,1770942640018,-542.0,0.00010322,2]
[405285445,1770942640028,-500.0,0.00010369,2]
[405285447,1770942640038,-3228.0,0.00010377,2]
[405285449,1770942640050,-542.0,0.00010377,2]
[405285451,1770942640059,-420.0,0.00010388,2]
[405285453,1770942640069,-1680.0,0.00010388,2]
[405285455,1770942640079,-255.0,0.00010388,2]
[405285457,1770942640090,-500.0,0.00010423,2]
[405285459,1770942640099,-3228.0,0.00010432,2]
[405285461,1770942640109,-542.0,0.00010432,2]
[405285463,1770942640120,-335.03,0.00010432,2]
[405285465,1770942640130,-500.0,0.00010478,2]
[405285467,1770942640140,-3228.0,0.00010487,2]
[405285469,1770942640150,-542.0,0.00010487,2]
[405285471,1770942640161,-500.0,0.00010533,2]
[405285473,1770942640170,-500.0,0.00010541,2]